bitfinex-derivatives/quotes_BTCF0:USTF0_20250504
["timestamp","ask_amount","ask_price","bid_price","bid_amount"]
[1746396082526,0.0654,95601.0,95600.0,0.84485614]
[1746396083326,0.2745714,95601.0,95600.0,0.84485614]
[1746396083827,0.0654,95601.0,95600.0,0.84485614]
[1746396085827,0.0654,95601.0,95600.0,0.87795614]
[1746396086025,0.0654,95601.0,95600.0,0.71805508]
[1746396086825,0.002,95601.0,95600.0,0.71805508]
[1746396087024,0.0324,95609.0,95608.0,0.2091561]
[1746396087325,0.0324,95609.0,95608.0,0.5871561]
[1746396087723,0.0324,95609.0,95608.0,0.6502561]
[1746396088125,0.0334,95609.0,95608.0,0.6502561]
[1746396088525,0.0364,95609.0,95608.0,1.0110561]
[1746396089731,0.004,95609.0,95608.0,1.0110561]
[1746396091133,0.004,95609.0,95608.0,1.05634588]
[1746396092226,0.0365,95609.0,95608.0,1.05634588]
[1746396092627,0.0365,95609.0,95608.0,1.0110561]
[1746396093728,0.0365,95609.0,95608.0,1.17087534]
[1746396094937,0.2456539,95609.0,95608.0,1.17087534]
[1746396095137,0.2091021,95633.0,95625.0,0.2091189]
[1746396095334,0.0324,95628.0,95627.0,0.2091145]
[1746396095530,0.0799367,95629.0,95628.0,0.2091123]
[1746396095731,0.0799367,95629.0,95628.0,0.4891123]
[1746396095926,0.0799367,95629.0,95628.0,0.5191123]
[1746396096233,0.0799367,95629.0,95628.0,0.6371123]
[1746396096824,0.0799367,95629.0,95628.0,0.428]
[1746396097035,0.7176189,95629.0,95628.0,0.258]
[1746396097235,0.2091255,95623.0,95622.0,0.2091249]
[1746396097435,0.2791255,95623.0,95622.0,0.3591249]
[1746396097631,0.3441255,95623.0,95622.0,0.15]
[1746396098223,0.4527015,95623.0,95622.0,0.268]
[1746396098535,0.7027015,95623.0,95622.0,0.268]
[1746396098738,0.4527015,95623.0,95622.0,0.268]
[1746396099236,0.4567015,95623.0,95622.0,0.268]
[1746396100428,0.7067015,95623.0,95622.0,0.268]
[1746396100628,0.7067015,95623.0,95622.0,0.118]
[1746396101231,0.2091277,95621.0,95620.0,0.15981924]
[1746396101430,0.2091277,95621.0,95603.0,0.36898524]
[1746396101431,0.2091583,95607.0,95603.0,0.36898524]
[1746396101631,0.2091648,95604.0,95603.0,0.36898524]
[1746396101832,0.2291648,95604.0,95603.0,0.50898524]
[1746396102338,0.2291648,95604.0,95603.0,0.62698524]
[1746396103043,0.2311648,95604.0,95603.0,0.62798524]
[1746396104543,0.2111648,95604.0,95603.0,0.62798524]
[1746396105242,0.2211648,95604.0,95603.0,0.41881924]
[1746396105444,0.2111648,95604.0,95603.0,0.259]
[1746396105638,0.2111648,95604.0,95603.0,0.898967]
[1746396105639,0.002,95604.0,95603.0,0.898967]
[1746396108346,0.3623,95640.0,95626.0,0.2091167]
[1746396108647,0.3204523,95627.0,95626.0,0.4991167]
[1746396108851,0.3508523,95627.0,95626.0,0.8599167]
[1746396109249,0.3508523,95627.0,95626.0,0.9779167]
[1746396109451,0.2709156,95627.0,95626.0,0.8279167]
[1746396109649,0.4369156,95627.0,95626.0,0.258]
[1746396109841,0.2769156,95627.0,95626.0,0.258]
[1746396110149,0.2769156,95627.0,95626.0,0.14]
[1746396110336,0.3019156,95627.0,95626.0,0.141]
[1746396111241,0.3019156,95627.0,95626.0,0.259]
[1746396111640,0.4064876,95627.0,95626.0,0.259]
[1746396112448,0.2091714,95602.0,95600.0,0.24069052]
[1746396112750,0.2591714,95602.0,95601.0,0.20917]
[1746396112946,0.2591714,95602.0,95601.0,0.34917]
[1746396113141,0.2591714,95602.0,95601.0,0.46717]
[1746396113346,0.2091714,95602.0,95601.0,0.53717]
[1746396113548,0.2091714,95602.0,95601.0,0.46717]
[1746396113948,0.2091714,95602.0,95601.0,0.46817]
[1746396115047,0.2101714,95602.0,95601.0,0.46817]
[1746396115247,0.2101714,95602.0,95601.0,0.50137]
[1746396115951,0.001,95602.0,95601.0,0.73533]
[1746396116152,0.001,95602.0,95601.0,0.80123]
[1746396116345,0.05228,95625.0,95624.0,0.2091211]
[1746396116346,0.2614041,95625.0,95624.0,0.2091211]
[1746396116548,0.2614041,95625.0,95624.0,0.5091211]
[1746396117253,0.2614041,95625.0,95624.0,0.6271211]
[1746396118453,0.2704041,95625.0,95624.0,0.6281211]
[1746396121860,0.009,95625.0,95624.0,0.6602211]
[1746396122644,0.2181189,95625.0,95624.0,0.6602211]
[1746396129655,0.2181189,95625.0,95624.0,0.419]
[1746396129849,0.2781189,95625.0,95624.0,0.259]
[1746396130249,0.6971949,95625.0,95624.0,0.001]
[1746396131052,0.2091408,95615.0,95614.0,0.15970539]
[1746396131256,0.2491408,95615.0,95614.0,0.17970539]
[1746396131760,0.3126408,95615.0,95614.0,0.17970539]
[1746396131960,0.3126408,95615.0,95614.0,0.02]
[1746396132163,0.3126408,95615.0,95614.0,0.138]
[1746396133155,0.3176408,95615.0,95614.0,0.138]
[1746396133857,0.3156408,95615.0,95614.0,0.138]
[1746396134063,0.3176408,95615.0,95614.0,0.138]
[1746396134763,0.4222288,95615.0,95614.0,0.138]
[1746396135063,0.4212288,95615.0,95614.0,0.139]
[1746396135460,0.4192288,95615.0,95614.0,0.138]
[1746396135762,0.4212288,95615.0,95614.0,0.139]
[1746396138172,0.4212288,95615.0,95614.0,0.119]
[1746396139877,0.4544288,95615.0,95614.0,0.119]
[1746396145471,0.3498408,95615.0,95614.0,0.448143]
[1746396145670,0.2447408,95615.0,95614.0,0.618143]
[1746396145885,0.2447408,95615.0,95614.0,0.409]
[1746396146178,0.3247408,95615.0,95614.0,0.119]
[1746396146375,0.2091714,95601.0,95600.0,0.1]
[1746396146579,0.07,95601.0,95600.0,0.42693014]
[1746396146880,0.2891714,95601.0,95600.0,0.21]
[1746396147181,0.2891714,95601.0,95600.0,0.328]
[1746396147382,0.2891714,95601.0,95600.0,0.3597]
[1746396147784,0.3208714,95601.0,95600.0,0.3597]
[1746396148584,0.3218714,95601.0,95600.0,0.3597]
[1746396148782,0.2718714,95601.0,95600.0,0.3597]
[1746396148970,0.3047714,95601.0,95600.0,0.3597]
[1746396149374,0.2747714,95601.0,95600.0,0.3597]
[1746396149674,0.2947714,95601.0,95600.0,0.3597]
[1746396150875,0.2967714,95601.0,95600.0,0.3607]
[1746396151275,0.1922,95601.0,95593.0,0.15970539]
[1746396151586,0.1922,95601.0,95587.0,0.00156924]
[1746396151587,0.2081998,95588.0,95587.0,4e-08]
[1746396151780,0.5689998,95588.0,95587.0,0.10000004]
[1746396151984,0.2081998,95588.0,95587.0,0.24000004]
[1746396152188,0.088193,95601.0,95596.0,0.2614687]
[1746396152384,0.209178,95598.0,95597.0,0.0321]
[1746396152572,0.209178,95598.0,95597.0,0.4334791]
[1746396152778,0.272478,95598.0,95597.0,0.4334791]
[1746396153077,0.272478,95598.0,95597.0,0.5514791]
[1746396153279,0.267478,95598.0,95597.0,0.5514791]
[1746396154688,0.270478,95598.0,95597.0,0.5514791]
[1746396154986,0.275478,95598.0,95597.0,0.5524791]
[1746396155187,0.008,95598.0,95597.0,0.5524791]
[1746396155379,0.217178,95598.0,95597.0,0.6124791]
[1746396156888,0.822582,95598.0,95597.0,0.279]
[1746396157187,0.2091998,95588.0,95585.0,0.16059489]
[1746396157383,0.6199998,95588.0,95587.0,0.01000004]
[1746396157981,0.6199998,95588.0,95587.0,4e-08]
[1746396157982,0.7973158,95588.0,95587.0,4e-08]
[1746396158180,0.7873158,95588.0,95587.0,0.09143134]
[1746396158381,1.0113158,95588.0,95587.0,0.09243134]
[1746396158581,1.4013158,95588.0,95587.0,0.09243134]
[1746396159086,1.0093158,95588.0,95587.0,0.09243134]
[1746396159291,1.0093158,95588.0,95587.0,0.001]
[1746396159591,0.9993158,95588.0,95587.0,0.001]
[1746396160280,1.0093158,95588.0,95587.0,0.001]
[1746396161383,1.3393158,95588.0,95587.0,0.001]
[1746396161790,0.9993158,95588.0,95587.0,0.001]
[1746396162091,0.9993158,95588.0,95587.0,0.119]
[1746396163085,0.9993158,95588.0,95587.0,0.001]
[1746396164790,0.8946998,95588.0,95587.0,0.101]
[1746396165186,0.8946998,95588.0,95587.0,0.119]
[1746396165881,0.9993158,95588.0,95587.0,0.0853346]
[1746396166090,0.9993158,95588.0,95578.0,0.06328]
[1746396166091,0.2092195,95579.0,95578.0,3e-08]
[1746396166292,0.2092568,95562.0,95558.0,0.0802]
[1746396166491,0.6000568,95562.0,95561.0,0.10008659]
[1746396167296,0.6640568,95562.0,95561.0,0.21808659]
[1746396167988,0.6660568,95562.0,95561.0,0.21808659]
[1746396169397,1.0268568,95562.0,95561.0,0.118]
[1746396169899,0.922244,95562.0,95555.0,0.00104651]
[1746396170099,0.2093071,95539.0,95528.0,0.26581218]
[1746396170290,0.6401071,95539.0,95529.0,0.0302]
[1746396170593,0.74477511,95539.0,95528.0,0.26581218]
[1746396170797,0.80697511,95539.0,95528.0,0.26581218]
[1746396171195,0.80697511,95539.0,95538.0,0.24908321]
[1746396171402,0.80697511,95539.0,95538.0,0.20418871]
[1746396172200,0.80697511,95539.0,95538.0,0.0560763]
[1746396172501,0.2093159,95535.0,95522.0,0.08618871]
[1746396172698,0.3993159,95535.0,95534.0,9e-08]
[1746396172900,0.5039919,95535.0,95534.0,9e-08]
[1746396174292,0.2093356,95526.0,95525.0,4e-08]
[1746396174492,0.2093422,95523.0,95522.0,0.02851815]
[1746396174685,0.7501422,95523.0,95522.0,5e-08]
[1746396174886,0.8648302,95523.0,95522.0,5e-08]
[1746396175090,0.8548302,95523.0,95522.0,5e-08]
[1746396175291,0.2093532,95518.0,95517.0,4e-08]
[1746396175506,0.2093619,95514.0,95513.0,0.23766872]
[1746396175701,0.7501619,95514.0,95513.0,0.23766872]
[1746396175893,0.8548579,95514.0,95513.0,0.23766872]
[1746396176199,0.9187379,95514.0,95513.0,0.21766872]
[1746396177192,0.9187379,95514.0,95513.0,0.18954022]
[1746396177392,0.9287379,95514.0,95513.0,2e-08]
[1746396177600,0.9317379,95514.0,95513.0,2e-08]
[1746396177802,0.9317379,95514.0,95500.0,0.1]
[1746396177803,0.2093904,95501.0,95500.0,0.1]
[1746396178002,0.6601904,95501.0,95500.0,0.14]
[1746396178698,0.7212904,95501.0,95500.0,0.14]
[1746396179593,0.8260024,95501.0,95500.0,0.0146614]
[1746396180294,0.526612,95501.0,95495.0,0.00104717]
[1746396180494,0.5702014,95496.0,95495.0,0.00104717]
[1746396180798,0.5702014,95496.0,95495.0,0.12104717]
[1746396180799,0.6341214,95496.0,95495.0,0.12104717]
[1746396181196,0.8441214,95496.0,95495.0,0.12104717]
[1746396181397,0.8441214,95496.0,95495.0,0.00104717]
[1746396181597,0.8471214,95496.0,95495.0,0.00104717]
[1746396182404,0.8571214,95496.0,95495.0,0.00104717]
[1746396182704,0.8471214,95496.0,95495.0,0.00104717]
[1746396182890,0.8803214,95496.0,95495.0,0.00104717]
[1746396184707,1.0050374,95496.0,95495.0,7e-08]
[1746396186797,1.0050374,95496.0,95465.0,0.0010475]
[1746396186798,0.2094343,95481.0,95480.0,4e-08]
[1746396187090,0.209465,95467.0,95466.0,0.0301]
[1746396187296,0.2094672,95466.0,95465.0,1e-07]
[1746396187600,0.9575152,95466.0,95465.0,0.0100001]
[1746396188095,0.2094979,95452.0,95451.0,0.0371001]
[1746396188294,0.5702979,95452.0,95451.0,0.1771001]
[1746396188706,0.5702979,95452.0,95451.0,0.1971001]
[1746396188902,0.5702979,95452.0,95451.0,0.6566002]
[1746396189298,0.6502979,95452.0,95451.0,0.1771001]
[1746396190394,0.6502979,95452.0,95451.0,0.1441001]
[1746396191105,0.6802979,95452.0,95451.0,0.1441001]
[1746396191305,0.2095067,95448.0,95447.0,0.00157154]
[1746396191601,0.6703067,95448.0,95447.0,0.00157154]
[1746396191807,0.7750747,95448.0,95447.0,0.00157154]
[1746396192107,0.6703067,95448.0,95447.0,0.00157154]
[1746396192605,0.7333067,95448.0,95447.0,0.00157154]
[1746396193505,0.0523814,95440.0,95435.0,0.00104783]
[1746396193709,0.570333,95436.0,95435.0,0.15104783]
[1746396194007,0.650333,95436.0,95435.0,0.00104783]
[1746396195409,0.650333,95436.0,95435.0,3e-08]
[1746396196300,0.65005843,95436.0,95435.0,3e-08]
[1746396197506,1.78541003,95436.0,95435.0,3e-08]
[1746396197914,1.82045003,95436.0,95435.0,3e-08]
[1746396198217,1.84045003,95436.0,95435.0,3e-08]
[1746396198514,1.59045003,95436.0,95435.0,3e-08]
[1746396199311,2.26045003,95436.0,95435.0,3e-08]
[1746396199810,1.61045003,95436.0,95435.0,3e-08]
[1746396200017,0.2095835,95413.0,95412.0,0.00157212]
[1746396200216,0.7103835,95413.0,95412.0,0.00157212]
[1746396200809,0.7738835,95413.0,95412.0,0.00157212]
[1746396202117,0.7411835,95413.0,95412.0,0.14157212]
[1746396202417,0.2095835,95413.0,95412.0,0.72115782]
[1746396202621,0.2095835,95413.0,95412.0,0.51157212]
[1746396202815,0.2095835,95413.0,95412.0,0.26157212]
[1746396204621,0.2095835,95413.0,95412.0,0.14157212]
[1746396207619,0.2395835,95413.0,95412.0,0.14157212]
[1746396209822,0.2701835,95413.0,95412.0,0.14157212]
[1746396210423,0.2701835,95413.0,95412.0,0.00157212]
[1746396210630,0.735408,95413.0,95375.0,0.00104849]
[1746396210821,0.2096473,95384.0,95383.0,0.0309]
[1746396211016,0.2296473,95384.0,95383.0,0.1609]
[1746396211527,0.2296473,95384.0,95383.0,0.13]
[1746396212231,0.2905473,95384.0,95383.0,0.13]
[1746396214218,0.2905473,95384.0,95375.0,0.00104849]
[1746396214219,0.2096605,95378.0,95375.0,0.00104849]
[1746396214428,0.2096978,95361.0,95360.0,0.00157294]
[1746396214732,0.7692578,95361.0,95360.0,0.13157294]
[1746396215429,0.8349578,95361.0,95360.0,0.13157294]
[1746396217128,0.7661978,95361.0,95360.0,0.13157294]
[1746396217331,0.2096978,95361.0,95360.0,0.3397]
[1746396217632,0.2096869,95366.0,95365.0,0.2096889]
[1746396217832,0.2096869,95366.0,95365.0,0.7604889]
[1746396218032,0.2096869,95366.0,95365.0,0.5508]
[1746396218229,0.2396868,95366.0,95365.0,0.14]
[1746396218435,0.2097132,95354.0,95353.0,0.0637]
[1746396218633,0.2397132,95354.0,95353.0,0.2037]
[1746396218830,0.2297132,95354.0,95353.0,0.2037]
[1746396219233,0.2097132,95354.0,95353.0,0.3037]
[1746396219529,0.2597132,95354.0,95353.0,0.14]
[1746396219725,0.2906132,95354.0,95353.0,0.14]
[1746396221234,0.2097264,95348.0,95347.0,0.0637]
[1746396221421,0.2197264,95348.0,95347.0,0.2037]
[1746396222430,0.2515264,95348.0,95347.0,0.2037]
[1746396222634,0.2515264,95348.0,95347.0,0.1732]
[1746396224333,0.2515264,95348.0,95347.0,0.2058]
[1746396224535,0.2097264,95348.0,95347.0,0.4155286]
[1746396224931,0.2097264,95348.0,95347.0,0.2058]
[1746396227234,0.2707264,95348.0,95347.0,0.14]
[1746396228135,0.3394864,95348.0,95347.0,0.0719458]
[1746396228440,0.3394864,95348.0,95326.0,0.01573]
[1746396228441,0.2097726,95327.0,95326.0,0.01573]
[1746396228745,0.2097748,95326.0,95325.0,0.00778269]
[1746396229041,0.3323748,95326.0,95325.0,0.15778269]
[1746396229231,0.3323748,95326.0,95325.0,0.15]
[1746396230036,0.2097738,95328.0,95327.0,0.2097721]
[1746396230339,0.2622164,95328.0,95327.0,0.22]
[1746396230532,0.2622164,95328.0,95327.0,0.15]
[1746396230843,0.2622164,95328.0,95327.0,0.21]
[1746396231537,0.3729164,95328.0,95327.0,0.15]
[1746396232138,0.3729164,95328.0,95327.0,0.11796]
[1746396232336,0.2097968,95316.0,95308.0,0.0321]
[1746396232640,0.2897968,95316.0,95315.0,0.16104915]
[1746396233342,0.2098144,95308.0,95307.0,0.01730385]
[1746396233643,0.7836944,95308.0,95307.0,0.01730385]
[1746396233846,0.79402588,95308.0,95307.0,0.00157385]
[1746396234137,0.72094588,95308.0,95307.0,0.00157385]
[1746396234344,0.85512588,95308.0,95307.0,0.00157385]
[1746396234740,0.71512588,95308.0,95307.0,0.06157385]
[1746396234936,0.71512588,95308.0,95307.0,0.01157385]
[1746396235138,0.68204588,95308.0,95307.0,0.01157385]
[1746396235440,0.75512588,95308.0,95307.0,0.01157385]
[1746396235638,0.68204588,95308.0,95307.0,0.01157385]
[1746396235839,0.75512588,95308.0,95307.0,0.01157385]
[1746396236346,0.68204588,95308.0,95307.0,0.01157385]
[1746396236535,0.75516588,95308.0,95307.0,0.01157385]
[1746396236732,0.82008988,95308.0,95307.0,5e-08]
[1746396236937,0.2098299,95301.0,95300.0,0.0594141]
[1746396237239,0.2098629,95286.0,95285.0,0.00104948]
[1746396237542,0.7537829,95286.0,95285.0,0.15104948]
[1746396238044,0.8587309,95286.0,95285.0,0.16155647]
[1746396238240,1.363068,95286.0,95242.0,0.11517384]
[1746396238435,0.210026,95212.0,95174.0,0.3608]
[1746396238745,0.2100878,95184.0,95176.0,0.00796601]
[1746396238944,0.9316878,95184.0,95176.0,0.00796601]
[1746396239242,0.9316878,95184.0,95137.0,0.03317646]
[1746396239243,1.50978,95184.0,95180.0,0.49876386]
[1746396239439,0.2100944,95181.0,95180.0,0.27933296]
[1746396239636,0.16,95181.0,95180.0,0.27933296]
[1746396239836,0.7216,95184.0,95180.0,2.50094341]
[1746396240039,0.0015,95220.0,95195.0,0.77717627]
[1746396240266,0.0715,95220.0,95219.0,0.77717627]
[1746396240441,0.0015,95220.0,95219.0,1.19741627]
[1746396240634,0.6415,95220.0,95185.0,0.3608]
[1746396240944,0.0525164,95194.0,95186.0,0.033]
[1746396241133,0.19,95194.0,95191.0,0.41791347]
[1746396241333,0.3608,95206.0,95193.0,0.77871347]
[1746396241536,0.0525103,95205.0,95200.0,0.41791347]
[1746396241735,0.0015,95220.0,95219.0,0.2100106]
[1746396241937,0.0015,95220.0,95219.0,0.14]
[1746396241938,0.4015084,95220.0,95219.0,0.14]
[1746396242139,0.4015084,95220.0,95219.0,0.0545431]
[1746396242338,0.9831,95220.0,95194.0,0.0303]
[1746396242539,0.2100503,95201.0,95200.0,0.41791347]
[1746396242743,0.3200503,95201.0,95200.0,0.15]
[1746396242944,0.2100613,95196.0,95195.0,0.0305]
[1746396243142,0.4300613,95196.0,95195.0,0.0305]
[1746396243340,0.8208613,95196.0,95195.0,0.0305]
[1746396243540,0.8208613,95196.0,95179.0,0.3608]
[1746396243541,0.2100966,95180.0,95179.0,0.3608]
[1746396243744,0.3608,95188.0,95180.0,0.42024]
[1746396243947,0.2100853,95186.0,95183.0,0.41791347]
[1746396244142,0.2100856,95185.0,95184.0,0.0305]
[1746396244338,0.3000856,95185.0,95184.0,0.1905]
[1746396244534,0.09,95185.0,95184.0,0.1905]
[1746396244742,0.01,95185.0,95184.0,2.05298061]
[1746396244935,0.3608,95208.0,95184.0,2.81146701]
[1746396245140,0.2625545,95204.0,95203.0,0.41791347]
[1746396245446,0.3825545,95204.0,95203.0,0.46791347]
[1746396245648,0.3300436,95204.0,95203.0,0.41791347]
[1746396245951,0.12,95204.0,95203.0,0.59151347]
[1746396246149,0.1,95204.0,95203.0,2.03532651]
[1746396246343,0.3608,95208.0,95207.0,0.210037]
[1746396246540,0.29613399,95220.0,95207.0,2.16092061]
[1746396246845,0.33613399,95220.0,95219.0,1.86248061]
[1746396247039,0.2515084,95220.0,95219.0,0.14]
[1746396247239,0.0415,95220.0,95216.0,0.3608]
[1746396247449,0.262516,95218.0,95217.0,0.47951347]
[1746396247758,0.422516,95218.0,95217.0,0.47951347]
[1746396247952,0.422516,95218.0,95217.0,0.0616]
[1746396248541,0.41,95218.0,95201.0,0.3608]
[1746396248749,0.3608,95206.0,95188.0,0.42024]
[1746396248943,0.2100767,95189.0,95188.0,0.56024]
[1746396249142,0.3500767,95189.0,95188.0,0.14]
[1746396249340,0.3500767,95189.0,95188.0,0.55791347]
[1746396249543,0.3500767,95189.0,95188.0,0.44044373]
[1746396250050,0.210079,95188.0,95187.0,0.3608]
[1746396250355,0.380079,95188.0,95187.0,0.3608]
[1746396251046,0.380079,95188.0,95187.0,0.4908]
[1746396251451,0.520079,95188.0,95187.0,0.4908]
[1746396251644,0.380079,95188.0,95187.0,0.13]
[1746396252552,0.380079,95188.0,95187.0,0.12988]
[1746396252951,0.17,95188.0,95187.0,1.83409087]
[1746396253151,0.07816628,95200.0,95192.0,0.0525175]
[1746396253446,0.07816628,95200.0,95199.0,1.02432714]
[1746396253649,0.07816628,95200.0,95199.0,1.96501087]
[1746396254038,0.07816628,95200.0,95199.0,2.17506557]
[1746396254244,0.07816628,95200.0,95199.0,1.96501087]
[1746396254846,0.44821878,95200.0,95199.0,1.96501087]
[1746396255049,0.44821878,95200.0,95199.0,1.60421087]
[1746396255551,0.23816628,95200.0,95199.0,1.60421087]
[1746396255750,0.07816628,95200.0,95199.0,1.86426557]
[1746396256255,0.210047,95203.0,95199.0,1.71821087]
[1746396256554,0.3150234,95217.0,95216.0,0.42024]
[1746396256855,0.4050234,95217.0,95216.0,0.57024]
[1746396257043,0.4050234,95217.0,95216.0,1.18397087]
[1746396258151,0.3525192,95217.0,95216.0,1.18397087]
[1746396258947,0.3858192,95217.0,95216.0,1.18397087]
[1746396259654,1.1241,95217.0,95188.0,0.07844]
[1746396259855,0.2100812,95187.0,95186.0,0.3608]
[1746396260054,0.2500812,95187.0,95186.0,0.5108]
[1746396260253,0.2500812,95187.0,95186.0,1.96501087]
[1746396260450,0.0525049,95215.0,95186.0,1.96501087]
[1746396260757,0.210037,95207.0,95206.0,1.45421087]
[1746396260957,0.260037,95207.0,95206.0,1.60421087]
[1746396263451,0.260037,95207.0,95206.0,1.63451087]
[1746396264146,0.10426245,95214.0,95206.0,1.63451087]
[1746396264356,0.15662914,95234.0,95215.0,0.0525045]
[1746396264658,0.13037805,95222.0,95221.0,0.2100061]
[1746396264859,0.13037805,95222.0,95221.0,0.7208061]
[1746396265059,0.13037805,95222.0,95221.0,2.17501697]
[1746396266054,0.23927109,95296.0,95233.0,0.2099797]
[1746396266055,0.0524884,95245.0,95233.0,0.2099797]
[1746396266254,0.0524877,95247.0,95233.0,2.16499057]
[1746396266464,0.12951691,95250.0,95233.0,1.95501087]
[1746396266764,0.2099488,95247.0,95246.0,0.79068373]
[1746396266949,0.3499488,95247.0,95246.0,0.83128373]
[1746396267151,0.3499488,95247.0,95246.0,1.48481087]
[1746396267352,0.3499488,95247.0,95246.0,1.49481087]
[1746396267758,0.3499488,95247.0,95246.0,1.33416069]
[1746396268565,0.3499488,95247.0,95246.0,1.32416069]
[1746396269358,0.3799488,95247.0,95246.0,1.32416069]
[1746396269555,0.3499488,95247.0,95246.0,1.45416069]
[1746396270663,0.3608,95268.0,95246.0,0.67018982]
[1746396270866,0.2099083,95266.0,95265.0,0.2099091]
[1746396271064,0.2099025,95268.0,95267.0,0.37044373]
[1746396271266,0.3299025,95268.0,95267.0,0.77003355]
[1746396271460,0.3299025,95268.0,95267.0,1.37811409]
[1746396271663,0.12,95268.0,95267.0,1.58801879]
[1746396271871,0.3299025,95268.0,95267.0,1.58801879]
[1746396272064,0.3299025,95268.0,95267.0,1.37811409]
[1746396273272,0.3801499,95268.0,95267.0,1.41101409]
[1746396273465,0.3801499,95268.0,95267.0,1.62091879]
[1746396274174,0.1702474,95268.0,95267.0,1.62091879]
[1746396274973,0.0502474,95268.0,95267.0,1.69867879]
[1746396275167,0.0702474,95268.0,95267.0,1.69867879]
[1746396275368,0.0502474,95268.0,95267.0,1.69867879]
[1746396275767,0.0702474,95268.0,95267.0,2.05947879]
[1746396275968,0.0902474,95268.0,95267.0,2.05947879]
[1746396276371,0.0502474,95268.0,95267.0,2.05947879]
[1746396276572,0.07996296,95268.0,95267.0,2.05947879]
[1746396276775,0.25986546,95268.0,95267.0,2.05947879]
[1746396276976,0.04996296,95268.0,95267.0,2.05947879]
[1746396277168,0.09996296,95268.0,95267.0,2.05947879]
[1746396277368,0.30986546,95268.0,95267.0,2.05947879]
[1746396277565,0.2099665,95239.0,95233.0,1.51288]
[1746396277765,0.02,95239.0,95238.0,0.58885]
[1746396278077,0.2099334,95254.0,95253.0,0.25958982]
[1746396278270,0.3199334,95254.0,95253.0,0.25958982]
[1746396278470,0.2624242,95253.0,95252.0,0.2099364]
[1746396278681,0.20994,95251.0,95250.0,0.5707416]
[1746396278882,0.31994,95251.0,95250.0,0.7207416]
[1746396279172,0.31994,95251.0,95250.0,1.95885569]
[1746396279979,0.31994,95251.0,95250.0,1.74891409]
[1746396280174,0.31994,95251.0,95250.0,1.38811409]
[1746396280574,0.2099665,95239.0,95231.0,0.3608]
[1746396280776,0.2164765,95239.0,95234.0,0.0309]
[1746396280972,0.2264765,95239.0,95231.0,0.3608]
[1746396281179,0.2099951,95226.0,95225.0,4e-08]
[1746396281375,0.92881897,95226.0,95225.0,4e-08]
[1746396281576,0.2100459,95203.0,95191.0,0.01029]
[1746396281778,0.18,95203.0,95202.0,0.00157559]
[1746396281971,0.12951691,95220.0,95205.0,0.0525103]
[1746396282281,0.2100172,95216.0,95215.0,0.2100194]
[1746396282471,0.11,95216.0,95215.0,0.01]
[1746396282672,0.11,95216.0,95215.0,1.45813349]
[1746396283476,0.2099905,95231.0,95230.0,0.209986]
[1746396283681,0.13,95231.0,95230.0,0.73042973]
[1746396283886,0.12951691,95250.0,95242.0,0.2099581]
[1746396284074,0.12951691,95250.0,95243.0,0.0617]
[1746396284075,0.2099554,95244.0,95243.0,0.0617]
[1746396284274,0.3099554,95244.0,95243.0,0.69173355]
[1746396284473,0.3099554,95244.0,95243.0,0.66978054]
[1746396285678,0.3099554,95244.0,95243.0,0.79978054]
[1746396286182,0.1,95244.0,95243.0,1.63977169]
[1746396286479,0.209954,95245.0,95244.0,0.2099554]
[1746396286686,0.269954,95245.0,95244.0,1.38891409]
[1746396286979,0.630754,95245.0,95244.0,0.12]
[1746396287181,0.2099753,95235.0,95219.0,0.07776]
[1746396287484,0.8207753,95235.0,95220.0,0.0328]
[1746396287678,0.8107753,95235.0,95220.0,0.0328]
[1746396287877,0.4499753,95235.0,95222.0,0.3608]
[1746396288082,0.2100017,95223.0,95222.0,0.3608]
[1746396288387,0.2100282,95211.0,95210.0,0.43856]
[1746396288687,0.3600282,95211.0,95210.0,0.4008]
[1746396288881,0.3600282,95211.0,95210.0,0.04]
[1746396289185,0.2100414,95205.0,95204.0,0.0328]
[1746396289387,0.3400414,95205.0,95204.0,0.1228]
[1746396289584,0.3400414,95205.0,95204.0,1.36091409]
[1746396289888,0.7008414,95205.0,95204.0,0.09]
[1746396290179,0.2100459,95203.0,95194.0,0.0328]
[1746396290380,0.15,95203.0,95202.0,0.59206742]
[1746396290581,0.15,95203.0,95202.0,1.24968968]
[1746396290881,0.15,95203.0,95202.0,1.45973778]
[1746396291886,0.3600459,95203.0,95202.0,1.24968968]
[1746396292681,0.3600459,95203.0,95202.0,1.45973778]
[1746396292886,0.3600459,95203.0,95202.0,1.24968968]
[1746396293591,0.3600459,95203.0,95202.0,1.45973778]
[1746396293778,0.15,95203.0,95202.0,1.45973778]
[1746396294187,0.3600459,95203.0,95202.0,1.24968968]
[1746396296874,0.3600459,95203.0,95202.0,0.61965613]
[1746396297481,0.4226459,95203.0,95202.0,0.61965613]
[1746396298977,0.4226459,95203.0,95202.0,0.00157559]
[1746396299586,0.6826459,95203.0,95202.0,9e-08]
[1746396299790,0.4426459,95203.0,95202.0,9e-08]
[1746396300305,0.5726459,95203.0,95202.0,9e-08]
[1746396300483,0.5826459,95203.0,95202.0,9e-08]
[1746396300980,0.5826459,95203.0,95202.0,0.71808063]
[1746396300981,0.5726459,95203.0,95202.0,0.71808063]
[1746396301680,0.5726459,95203.0,95183.0,0.2100897]
[1746396301681,1.3734,95203.0,95171.0,0.00157583]
[1746396301983,0.2100922,95182.0,95181.0,0.05029]
[1746396302189,0.3200922,95182.0,95181.0,0.29958982]
[1746396302488,0.2101143,95172.0,95171.0,0.00157583]
[1746396302678,0.3301143,95172.0,95171.0,0.25153285]
[1746396302880,0.3301143,95172.0,95171.0,1.18345081]
[1746396303085,0.3301143,95172.0,95157.0,0.05231]
[1746396303086,0.2101452,95158.0,95157.0,0.05231]
[1746396303386,0.4971052,95158.0,95157.0,0.05231]
[1746396303589,0.2101938,95136.0,95124.0,0.052555]
[1746396303777,0.2101938,95136.0,95135.0,0.13105113]
[1746396303778,0.22973381,95136.0,95135.0,0.13105113]
[1746396303986,0.07696,95136.0,95135.0,1.60263164]
[1746396304180,0.2601938,95136.0,95135.0,1.28243564]
[1746396304491,0.2601938,95136.0,95135.0,0.18336113]
[1746396304884,0.2601938,95136.0,95135.0,0.00105113]
[1746396305080,0.2601938,95136.0,95135.0,0.05336113]
[1746396305394,0.2923938,95136.0,95135.0,0.05336113]
[1746396306192,0.2401938,95136.0,95135.0,1.72554564]
[1746396306881,0.03,95136.0,95135.0,1.72554564]
[1746396307084,0.07696,95158.0,95135.0,1.84554564]